Cogmind - Beta 16.1 @@@ ROGUE MODE // 2026.04.10 @ 11:38:54 Player: Maelyn Result: Destroyed by TA-SNB(R) with Subdweller Laser Performance ------------- Evolutions (0) 0 Regions Visited (1) 200 Robots Destroyed (18) 90 Value Destroyed (274) 274 Prototype IDs (0) 0 Alien Tech Used (0) 0 Bonus (0) 0 TOTAL SCORE: 564 Bonus ------- None Cogmind --------- Core Integrity 0/250 Matter 300/300 Energy 124/125 System Corruption 0% Temperature Cool (15) Movement Core (450) Ox8 Location -10/Materials Parts ------- > --- POWER (1) -------- Light Ion Engine > --- PROPULSION (2) --- (None) > --- UTILITY (2) ------ Large Storage Unit > --- WEAPON (2) ------- Beam Cannon > --- INVENTORY (15) --- Aluminum Leg Aluminum Leg Small Storage Unit Sensor Array ECM Suite Light Assault Rifle Light Cannon Peak State ------------ > --- POWER ------------ Ion Engine > --- PROPULSION ------- Light Treads Light Treads > --- UTILITY ---------- Small Storage Unit Seismic Detector > --- WEAPON ----------- EM Pulse Gun EM Pulse Gun > --- INVENTORY -------- Light Ion Engine Aluminum Leg Aluminum Leg Assault Rifle [Rating: 7] Favorites ----------- Power Ion Engine Engine Ion Engine Propulsion Light Treads Treads Light Treads Leg Aluminum Leg Utility Seismic Detector Device Seismic Detector Storage Large Storage Unit Weapon Beam Cannon Energy Gun EM Pulse Gun Energy Cannon Beam Cannon Ballistic Gun Assault Rifle Ballistic Cannon Light Cannon Build | -11 -10 ------- Run | Yrd Mat Slots Evolved . | . . Power . | . . Propulsion . | . . Utility . | . . Weapon . | . . Parts Attached 15 | 7 8 Power 3 | 1 2 Engine 3 | 1 2 Core . | . . Reactor . | . . Propulsion 4 | 2 2 Treads 3 | 2 1 Leg 1 | . 1 Wheel . | . . Hover . | . . Flight . | . . Utility 3 | 2 1 Device 1 | 1 . Storage 2 | 1 1 Processor . | . . Hackware . | . . Protection . | . . Artifact . | . . Weapon 5 | 2 3 Energy Gun 2 | 2 . Energy Cannon 1 | . 1 Ballistic Gun 1 | . 1 Ballistic Cannon 1 | . 1 Launcher . | . . Special Weapon . | . . Impact Weapon . | . . Slashing Weapon . | . . Piercing Weapon . | . . Special Melee Weapon . | . . Unidentified Prototypes . | . . Parts Lost 9 | . 9 Power 2 | . 2 Propulsion 3 | . 3 Utility 1 | . 1 Weapon 3 | . 3 Highest Loss Streak 3 | . 3 To Critical Strikes . | . . Average Backups 5 | 3 5 Power . | . . Propulsion 2 | 1 2 Utility 1 | . 1 Weapon . | 1 . Tool/Special . | . . Unused Backups 4 | . 4 Power 1 | . 1 Propulsion 1 | . 1 Utility 1 | . 1 Weapon 1 | . 1 Tool/Special . | . . Average Slot Usage (%) 92 | . 92 Engine 12 | . 12 Treads 24 | . 24 Device 13 | . 13 Storage 14 | . 14 Energy Gun 3 | . 3 Energy Cannon 8 | . 8 Ballistic Gun 6 | . 6 Ballistic Cannon 7 | . 7 Peak Build Rating 7 | 7 7 Average Rating 6 | 5 6 On Entrance 3 | . 7 Avg Prop Armor Cover (%) 10 | . 10 Naked Turns . | . . Heaviest Build 32 | 15 32 Greatest Support 40 | 40 40 Greatest Overweight (x) 8 | . 8 Average Overweight (x) . | . . Largest Inventory Capacity 15 | 8 15 Average Capacity 11 | 7 12 Most Carried 7 | 7 7 Average Carried 5 | 3 5 Final Capacity 15 | 8 15 Final Carried 7 | 4 7 Class Distribution -------------------- 100% | Mutant Dominant Class ---------------- Mutant | -10/Materials Resources | -11 -10 ----------- Run | Yrd Mat Matter Collected 479 | 186 293 Remotely . | . . Salvage Created 553 | 43 510 Parts 35 | 5 30 Haulers Intercepted 1 | . 1 Recyclers Shooed 2 | . 2 Parts Field Recycled . | . . Retrieved Matter . | . . Parts Self-Destructed . | . . Prevented . | . . Parts Restored . | . . Kills | -11 -10 ------- Run | Yrd Mat Combat Hostiles Destroyed 10 | . 10 Guns 6 | . 6 Cannons 4 | . 4 Classes Destroyed 7 | 1 6 Worker 1 | . 1 Tunneler 3 | 3 . Hauler 1 | . 1 Recycler 2 | . 2 Watcher 1 | . 1 Swarmer 6 | . 6 Grunt 4 | . 4 Best Kill Streak 4 | 3 4 Combat Bots Only 3 | . 3 Max Kills in Single Turn 2 | 1 2 Gunslinging 1 | . 1 Exploded . | . . Melee . | . . Uniques/NPCs Destroyed . | . . Combat | -11 -10 -------- Run | Yrd Mat Hostile Shots Fired 139 | . 139 Missed 31 | . 31 Hits 108 | . 108 Projectile 108 | . 108 Critical Strikes 2 | . 2 Damage Taken 1381 | 36 1345 Core 258 | . 258 Absorbed by Shields . | . . Core Remaining (%) 100 | 100 . Volleys Fired 68 | 5 63 Largest 2 | 2 2 Hottest 90 | 80 90 Shots Fired 113 | 10 103 Gun 68 | 10 58 Cannon 45 | . 45 Launcher . | . . Special . | . . Kinetic 46 | . 46 Thermal 32 | . 32 Explosive . | . . Electromagnetic 35 | 10 25 Robot Hit Streak 9 | 9 8 Robot Miss Streak 6 | 1 6 Penetration Max . | . . Secondary Targets 1 | . 1 Max Gunslinging Chain 1 | . 1 Shots Hit Robots 69 | 9 60 Core Hits 24 | 3 21 Critical Kills . | . . Critical Parts Destroyed . | . . Critical Strikes . | . . Melee Attacks . | . . Impact . | . . Slashing . | . . Piercing . | . . Sneak Attacks . | . . Combat Hostiles . | . . Follow-up Attacks . | . . Damage Inflicted 1201 | 184 1017 Guns 497 | 91 406 Cannons 610 | . 610 Explosions 93 | 93 . Melee . | . . Ramming 1 | . 1 Kinetic 412 | . 412 Thermal 539 | 93 446 Explosive . | . . Electromagnetic 249 | 91 158 Impact . | . . Slashing . | . . Piercing . | . . Highest Corruption . | . . Average Corruption . | . . Corruption Purged . | . . Corruption Blocked . | . . Overload Shots . | . . Overflow Damage 19 | . 19 Projectiles 19 | . 19 Explosions . | . . Melee . | . . Knockbacks 2 | . 2 Impact . | . . Kinetic 2 | . 2 Secondary . | . . Self-Inflicted Damage 37 | 37 . Shots 2 | 2 . Rammed 1 | . 1 Targets Rammed 1 | . 1 Kicked . | . . Crushed . | . . Highest Temperature 280 | 48 280 Average Temperature 102 | 23 110 Received Heat Transfer 561 | . 561 Effects 1 | . 1 Interference 1 | . 1 Siege Activations . | . . Martial Activations . | . . Shielding Activations . | . . Robots Disrupted . | . . Combat Hostiles . | . . Robots Corrupted . | . . Combat Hostiles . | . . Parts Fried . | . . Impact Corruptions . | . . Robots Melted . | . . Combat Hostiles . | . . Parts Melted 1 | 1 . Heat Transferred 1025 | 100 925 Parts Sabotaged . | . . Parts Stolen . | . . Parts Stripped . | . . Power Chain Reactions 2 | 2 . Alert | -11 -10 ------- Run | Yrd Mat Maximum Alert Level . | . . Low Security (%) 100 | 100 100 Level 1 . | . . Level 2 . | . . Level 3 . | . . Level 4 . | . . Level 5 . | . . High Security . | . . Max Security . | . . Peak Influence 67 | 5 67 Initial . | . . Average 13 | 1 15 Influence Increases 296 | 15 281 Destroy 0b10 Robot/C 200 | . 200 Destroy 0b10 Robot/NC 40 | 15 25 Destroy Leader 44 | . 44 Successful Hack 12 | . 12 Influence Decreases 296 | 15 281 Time Decay 228 | 15 213 Lost Part 68 | . 68 Squads Dispatched 2 | . 2 Investigation 2 | . 2 Extermination . | . . Reinforcement . | . . Assault . | . . Garrison . | . . Intercept . | . . Searches Triggered . | . . Construction Impeded . | . . Haulers Reinforced . | . . Active Scanning Responses . | . . Cargo Convoy Interrupts . | . . Stealth | -11 -10 --------- Run | Yrd Mat Distress Signals 2 | . 2 Communications Jammed . | . . Distress Signals . | . . Times Spotted 25 | . 25 Peak Tracking Total 5 | . 5 Tactical Retreats 1 | . 1 Traps | -11 -10 ------- Run | Yrd Mat Traps Triggered 1 | . 1 Indirectly . | . . Trap Hack Attempts . | . . Triggered . | . . Disarmed . | . . Reprogrammed . | . . Reused . | . . Traps Extracted . | . . Installed . | . . Triggered . | . . Machines | -11 -10 ---------- Run | Yrd Mat Machines Disabled . | . . Max in Single Turn . | . . Machines Repaired . | . . Machines Dismantled . | . . Machines Sabotaged . | . . Overloaded Fab Kills . | . . Hacking | -11 -10 --------- Run | Yrd Mat Machines Accessed 2 | . 2 Terminals 2 | . 2 Fabricators . | . . Repair Stations . | . . Recycling Units . | . . Scanalyzers . | . . Garrison Access . | . . Total Hacks 7 | . 7 Successful 2 | . 2 Failed 5 | . 5 Catastrophic 1 | . 1 Database Lockouts . | . . Manual 7 | . 7 Terminals 7 | . 7 Fabricators . | . . Repair Stations . | . . Recycling Units . | . . Scanalyzers . | . . Garrison Access . | . . Terminal Hacks 2 | . 2 Robot Analysis 2 | . 2 Fabricator Hacks . | . . Repair Station Hacks . | . . Recycling Unit Hacks . | . . Scanalyzer . | . . Garrison Access Hacks . | . . Unauthorized Hacks . | . . Terminals . | . . Fabricators . | . . Repair Stations . | . . Recycling Units . | . . Scanalyzers . | . . Garrison Access . | . . Data Cores Recovered . | . . Used . | . . Hacking Detections 2 | . 2 Full Trace Events 1 | . 1 Feedback Events . | . . Feedback Blocked . | . . Robot Schematics Acquired . | . . Robots Built . | . . Authchips . | . . Time . | . . Total Robot Build Rating . | . . Part Schematics Acquired . | . . Parts Built . | . . Authchips . | . . Time . | . . Total Part Build Rating . | . . Part Studies Acquired . | . . Parts Repaired . | . . Time . | . . Parts Recycled . | . . Recycled Matter . | . . Retrieved Matter . | . . Retrieved Components . | . . Parts Scanalyzed . | . . Part Schematics Acquired . | . . Parts Damaged . | . . Bothacking | -11 -10 ------------ Run | Yrd Mat Used RIF Installer . | . . Robots Hacked . | . . Non-combat . | . . Combat . | . . Robot Hacks Applied . | . . Relay Couplers Released . | . . Fabnet Peak Effective % . | . . Robots Rewired . | . . Allies Hacked . | . . Hacks Repelled . | . . Allies | -11 -10 -------- Run | Yrd Mat Total Allies . | . . Largest Group . | . . Highest-Rated Group . | . . Highest-Rated Ally . | . . Total Orders . | . . Ally Attacks . | . . Total Damage . | . . Kills . | . . Allies Corrupted . | . . Allies Melted . | . . Intel | -11 -10 ------- Run | Yrd Mat Active Infowar (turns) 935 | 19 916 Seismic 935 | 19 916 Robot Analysis Total 2 | . 2 Derelict Logs Recovered . | . . Drone Launches . | . . Drone Recoveries . | . . Exploration | -11 -10 ------------- Run | Yrd Mat Turns Passed 1061 | 130 931 Spaces Moved 494 | 64 430 Core 8 | 4 4 Treads 484 | 60 424 Legs 2 | . 2 Wheels . | . . Hover . | . . Flight . | . . Fastest Speed 50 | 50 160 Average Speed 170 | 153 173 Slowest Speed 450 | 160 450 Overloaded Moves . | . . Propulsion Burnouts . | . . Robots Hopped . | . . Potential Cave-ins . | . . Cave-ins Triggered . | . . Exploration Rate (%) 34 | 4 65 Regions Visited 1 Branch Regions . Pre-discovered Areas . | . . Known Exits Taken . | . . Unknown Exits Taken 1 | 1 . Scrap Searched . | . . Spaces Dug . | . . Terrain Destroyed 8 | 8 . Melee . | . . Projectile . | . . AOE 8 | 8 . Terrain Rammed . | . . Walls Destroyed . | . . Machines Disabled . | . . Actions | -11 -10 --------- Run | Yrd Mat Total 599 | 86 513 Wait 1 | . 1 Move 493 | 63 430 Hop . | . . Pick Up 18 | 11 7 Fast Attach . | . . Attach 12 | 7 5 Detach . | . . Swap 5 | . 5 Drop 1 | . 1 Fire 68 | 5 63 Melee . | . . Ram . | . . Kick . | . . Crush 1 | . 1 Escape Stasis . | . . Rewire . | . . Trap . | . . Miscellaneous . | . . Route ------- -11/Scrapyard -10/Materials (discovered 2 exits: [*Mat] / [*Min]) History --------- Turn | Location | Event 15 | -11/Scrapyard | Discovered new exit (range 16) 131 | -11/Scrapyard | Entered Materials 308 | -10/Materials | Build established: Mutant 389 | -10/Materials | Discovered new exit (range 10) 520 | -10/Materials | Discovered new exit (range 7) 831 | -10/Materials | Derelicts attacked the area 884 | -10/Materials | Core integrity fell below 50% 1052 | -10/Materials | Core integrity fell below 20% 1062 | -10/Materials | Destroyed by TA-SNB(R) with Subdweller Laser Last Messages --------------- 00964_ Acquired 3 matter. 00968_ Acquired Lgt. Ion Engine. 00970_ R-06 Scavenger collects Wheel. 00977_ R-06 Scavenger inserts Aluminum Leg into recycling unit. 00978_ Recycling unit begins recycling process. 00980_ R-06 Scavenger inserts Ion Engine into recycling unit. 00983_ R-06 Scavenger inserts Flight Unit into recycling unit. 00983_ K-01 Serf collects debris. 00986_ R-06 Scavenger inserts Wheel into recycling unit. 00988_ K-01 Serf collects debris. 00999_ R-06 Scavenger destroyed. 01006_ K-01 Serf destroyed. 01010_ Recycling Unit disabled. 01010_ Corrupted Lgt. Assault Rifle tumbles out of recycling unit. 01035_ Acquired ECM Suite. 01041_ Assault Rifle destroyed. 01047_ Lgt. Treads destroyed. 01047_ Seismic Detector destroyed. Map ----- +----------------------------------------------------+ | #! """ # # """ #????????????????????????? | | # """ + + """ ! #????????????????????????? | | # """ # # """ #????????????????????????? | | # # # #????????????????????????? | | ########## #########?????????????????????????? | | #???????# #########????????????????????????? | | #???????# #????????????????????????? | | ######### T% % #????????????????????????? | | ## % = #????????????????????????? | | + #### #### #????????????????????????? | | # #??########## #????????????????????????? | | ### #???# # #######??????? ??????????? | | #???# + # [! #????## #????????? | | #???# # # [! #? +????????? | | !! #???######### # ![ #? #????????? | | !! #?########### # +%* #????????? | | ! #?# ###+###R= #????????? | | #?# % % #????????? | | ### =%* ??????? | | *% """! ##?????????? | | % %% % Y" #####+##??????????? | | ######### [ #?????????????????? | | # #####+########## ^#?????????????????? | | # ## ^ # # +?????????????????? | | # ## """ # # #?????????????????? | | # ## """ # # R @ #?????????????????? | | # ## """ # + ##### #?????????????????? | | # ## # # #???? #????????????????? | | # ## """ #######/#####? #????????????????? | | # ## """ ## #? ???????????????? | | # ?# """ ## #?= ###??????????????? | | # ?# ## """ "" #? #????????????????? | | # ?########### """ T" #?#####????????????????? | | ?? ????????????# """ "" #??????????????????????? | | ???????????????# #??????????????????????? | | ???????????????############??????????????????????? | | ?????????????????????????????????????????????????? | | ?????????????????????????????????????????????????? | | ?????????????????????????????????????????????????? | | ?????????????????????????????????????????????????? | | ?????????????????????????????????????????????????? | | ?????????????????????????????????????????????????? | | ?????????????????????????????????????????????????? | | ?????????????????????????????????????????????????? | | ?????????????????????????????????????????????????? | | ?????????????????????????????????????????????????? | | ?????????????????????????????????????????????????? | | ?????????????????????????????????????????????????? | | ?????????????????????????????????????????????????? | | ?????????????????????????????????????????????????? | +----------------------------------------------------+ Best States ------------- Heat Dissipation 25 Energy Generation 10 Energy Capacity 250 Matter Stores 300 Matter Capacity 300 Sight Range 16 Terrain Scan Density 10 Evasion (%) 40 Recoil Reduction 2 Item Schematics ----------------- None Robot Schematics ------------------ None Fabricated ------------ Nothing Repaired ---------- Nothing Studied --------- None Alien Tech Used ----------------- None Achievements -------------- None Challenges ------------ None Game ------ Seed DynamicTeleporterWarhead Manual? 0 Play Time 00:11:31 Cumulative 30.7 hours Start 2026.04.10 @ 11:28:03 End 2026.04.10 @ 11:38:54 Sessions 1 Manual Loads 0 Difficulty Rogue Special Mode None Game No. 85 Rogue 85 Adventurer 0 Explorer 0 Win Type - Total 0 Types 0/0/0/0/0/0/0/0/0/0 Lore% 14 Gallery% 23 Achievement% 14 Wizard Run 0 Options --------- Layout 2 ASCII 0 Keyboard 1 Movement Vi Keybinds 0 Fullscreen 2 Font 20/Terminus Map View 64x51 Zoom Use 0% Tactical HUD 1 Map Filters NONE Filters NONE Steam 1 RUN: a39bf178-01d1-43c1-9779-e4294ed7a87d